[Event "*** Titled Tuesday Blitz"]
[Site "Chess.com"]
[Date "2020.10.27"]
[Round "1"]
[White "brunomorado"]
[Black "wannabe2700"]
[Result "1/2-1/2"]
[WhiteElo "2402"]
[BlackElo "2743"]
[TimeControl "180+1"]
[EndTime "10:07:20 PDT"]
[Termination "Game drawn by repetition"]

1. d4 {[%clk 0:02:59.1]} 1... Nf6 {[%clk 0:02:58.8]} 2. Nc3 {[%clk 0:02:58.9]}
2... d5 {[%clk 0:02:56]} 3. Bg5 {[%clk 0:02:58.8]} 3... Nbd7 {[%clk 0:02:45]} 4.
Qd3 {[%clk 0:02:58.7]} 4... e6 {[%clk 0:02:36.7]} 5. e4 {[%clk 0:02:58.6]} 5...
dxe4 {[%clk 0:02:37.6]} 6. Nxe4 {[%clk 0:02:59.3]} 6... Be7 {[%clk 0:02:23]} 7.
Bxf6 {[%clk 0:02:57.7]} 7... Nxf6 {[%clk 0:02:22.9]} 8. g3 {[%clk 0:02:53.4]}
8... Nxe4 {[%clk 0:02:15.3]} 9. Qxe4 {[%clk 0:02:54.3]} 9... c5 {[%clk
0:02:15.8]} 10. O-O-O {[%clk 0:02:46.5]} 10... Qa5 {[%clk 0:02:11.5]} 11. Kb1
{[%clk 0:02:33.3]} 11... cxd4 {[%clk 0:02:04.8]} 12. Nf3 {[%clk 0:02:31.3]}
12... O-O {[%clk 0:02:00.3]} 13. Nxd4 {[%clk 0:02:30.1]} 13... Bf6 {[%clk
0:01:52.1]} 14. Nb3 {[%clk 0:02:23.4]} 14... Qb6 {[%clk 0:01:52]} 15. Bd3 {[%clk
0:02:13]} 15... g6 {[%clk 0:01:51.2]} 16. h4 {[%clk 0:02:11.8]} 16... a5 {[%clk
0:01:47]} 17. a4 {[%clk 0:02:00.6]} 17... Bd7 {[%clk 0:01:31.8]} 18. h5 {[%clk
0:01:57.3]} 18... Bc6 {[%clk 0:01:18.6]} 19. Qf4 {[%clk 0:01:56.8]} 19... Bxh1
{[%clk 0:01:08.8]} 20. Qxf6 {[%clk 0:01:55.1]} 20... Qd8 {[%clk 0:01:08.9]} 21.
Qxd8 {[%clk 0:01:51.1]} 21... Rfxd8 {[%clk 0:01:09.8]} 22. Rxh1 {[%clk
0:01:51.8]} 22... Kg7 {[%clk 0:01:09.8]} 23. g4 {[%clk 0:01:43.5]} 23... f5
{[%clk 0:01:05.2]} 24. Nc5 {[%clk 0:01:34.7]} 24... Kf6 {[%clk 0:01:02]} 25.
hxg6 {[%clk 0:01:30.8]} 25... hxg6 {[%clk 0:01:01.7]} 26. Rh7 {[%clk 0:01:31]}
26... Rd5 {[%clk 0:00:48]} 27. Nd7+ {[%clk 0:01:16]} 27... Kg5 {[%clk
0:00:47.1]} 28. gxf5 {[%clk 0:01:14.3]} 28... gxf5 {[%clk 0:00:38.3]} 29. Nb6
{[%clk 0:01:14.1]} 29... Rxd3 {[%clk 0:00:33.3]} 30. cxd3 {[%clk 0:01:14.2]}
30... Rd8 {[%clk 0:00:34.2]} 31. Kc2 {[%clk 0:01:10.9]} 31... Rd6 {[%clk
0:00:32.8]} 32. Rxb7 {[%clk 0:01:07.9]} 32... Kf4 {[%clk 0:00:32.4]} 33. Nc4
{[%clk 0:01:07.1]} 33... Rd5 {[%clk 0:00:31.2]} 34. Rf7 {[%clk 0:01:00.2]} 34...
Kf3 {[%clk 0:00:30.4]} 35. Re7 {[%clk 0:00:59]} 35... Kxf2 {[%clk 0:00:29.3]}
36. Rxe6 {[%clk 0:00:59.2]} 36... f4 {[%clk 0:00:29.9]} 37. Rf6 {[%clk
0:00:58.1]} 37... f3 {[%clk 0:00:30.1]} 38. Kd2 {[%clk 0:00:56.3]} 38... Rg5
{[%clk 0:00:25.4]} 39. Ne3 {[%clk 0:00:40.8]} 39... Rg8 {[%clk 0:00:22]} 40. Rf5
{[%clk 0:00:34.1]} 40... Re8 {[%clk 0:00:21.8]} 41. Nd1+ {[%clk 0:00:31.6]}
41... Kg3 {[%clk 0:00:21.9]} 42. Rxa5 {[%clk 0:00:30.7]} 42... Re2+ {[%clk
0:00:21.8]} 43. Kc3 {[%clk 0:00:30.8]} 43... Re1 {[%clk 0:00:22]} 44. Kd2 {[%clk
0:00:27.9]} 44... Re2+ {[%clk 0:00:21.7]} 45. Kc3 {[%clk 0:00:26]} 45... Re1
{[%clk 0:00:21.7]} 46. Kd2 {[%clk 0:00:22.7]} 46... Re2+ {[%clk 0:00:21.6]}
1/2-1/2

[Event "*** Titled Tuesday Blitz"]
[Site "Chess.com"]
[Date "2020.10.27"]
[Round "1"]
[White "Ind1anStar"]
[Black "Gordima"]
[Result "0-1"]
[WhiteElo "2418"]
[BlackElo "2808"]
[TimeControl "180+1"]
[EndTime "10:07:25 PDT"]
[Termination "Gordima won by checkmate"]

1. c4 {[%clk 0:03:00.9]} 1... e6 {[%clk 0:03:00]} 2. Nf3 {[%clk 0:03:00.1]} 2...
d5 {[%clk 0:03:00.4]} 3. e3 {[%clk 0:02:59.2]} 3... Nf6 {[%clk 0:03:00.6]} 4.
Nc3 {[%clk 0:02:59.3]} 4... c5 {[%clk 0:03:00.5]} 5. cxd5 {[%clk 0:02:57.7]}
5... exd5 {[%clk 0:03:01.4]} 6. d4 {[%clk 0:02:56.7]} 6... Nc6 {[%clk 0:03:02]}
7. Bb5 {[%clk 0:02:56.8]} 7... cxd4 {[%clk 0:02:59]} 8. exd4 {[%clk 0:02:52.9]}
8... Be7 {[%clk 0:02:55.8]} 9. O-O {[%clk 0:02:52.8]} 9... O-O {[%clk
0:02:55.7]} 10. h3 {[%clk 0:02:51.4]} 10... Qb6 {[%clk 0:02:53.6]} 11. Re1
{[%clk 0:02:46.1]} 11... Be6 {[%clk 0:02:40]} 12. Rb1 {[%clk 0:02:28.5]} 12...
Bb4 {[%clk 0:02:32.6]} 13. Bg5 {[%clk 0:02:19]} 13... Ne4 {[%clk 0:02:28.1]} 14.
Bd3 {[%clk 0:02:02.5]} 14... h6 {[%clk 0:02:08.5]} 15. Be3 {[%clk 0:01:27.3]}
15... Qa5 {[%clk 0:02:08.1]} 16. Bxe4 {[%clk 0:01:12.6]} 16... dxe4 {[%clk
0:02:04.9]} 17. Nd2 {[%clk 0:01:12.8]} 17... f5 {[%clk 0:01:55.7]} 18. Nb3
{[%clk 0:00:57.5]} 18... Qd8 {[%clk 0:01:38.7]} 19. a3 {[%clk 0:00:44]} 19...
Bxc3 {[%clk 0:01:36.6]} 20. bxc3 {[%clk 0:00:44.9]} 20... f4 {[%clk 0:01:37.2]}
21. Bd2 {[%clk 0:00:36.5]} 21... b6 {[%clk 0:01:29.2]} 22. Rxe4 {[%clk
0:00:19.2]} 22... Bf5 {[%clk 0:01:29.1]} 23. Rxf4 {[%clk 0:00:19.1]} 23... Bxb1
{[%clk 0:01:29]} 24. Qxb1 {[%clk 0:00:20]} 24... Qd5 {[%clk 0:01:23.7]} 25. Rg4
{[%clk 0:00:10.3]} 25... Rf6 {[%clk 0:01:23]} 26. Be3 {[%clk 0:00:08.7]} 26...
Re8 {[%clk 0:01:21.9]} 27. Nd2 {[%clk 0:00:09.1]} 27... Ne7 {[%clk 0:01:12.3]}
28. c4 {[%clk 0:00:08.8]} 28... Qf7 {[%clk 0:00:59]} 29. Ne4 {[%clk 0:00:08.1]}
29... Rg6 {[%clk 0:00:59.4]} 30. Rf4 {[%clk 0:00:07.3]} 30... Qe6 {[%clk
0:00:55.6]} 31. d5 {[%clk 0:00:06.8]} 31... Qe5 {[%clk 0:00:56]} 32. Nd2 {[%clk
0:00:05]} 32... Qh5 {[%clk 0:00:51.7]} 33. Nf3 {[%clk 0:00:04.1]} 33... Rf8
{[%clk 0:00:41.7]} 34. Rxf8+ {[%clk 0:00:03.4]} 34... Kxf8 {[%clk 0:00:42.6]}
35. d6 {[%clk 0:00:03.2]} 35... Rxd6 {[%clk 0:00:30.8]} 36. c5 {[%clk
0:00:03.4]} 36... Rg6 {[%clk 0:00:24.9]} 37. Qe4 {[%clk 0:00:04]} 37... Qd5
{[%clk 0:00:23.2]} 38. Qf4+ {[%clk 0:00:03.9]} 38... Kg8 {[%clk 0:00:20.2]} 39.
Qb8+ {[%clk 0:00:04.5]} 39... Kh7 {[%clk 0:00:20.3]} 40. Ne5 {[%clk 0:00:04.9]}
40... Qxg2# {[%clk 0:00:19.8]} 0-1

[Event "*** Titled Tuesday Blitz"]
[Site "Chess.com"]
[Date "2020.10.27"]
[Round "1"]
[White "Leonid_Starozhilov"]
[Black "BJthechessgod"]
[Result "1-0"]
[WhiteElo "2637"]
[BlackElo "2290"]
[TimeControl "180+1"]
[EndTime "10:07:33 PDT"]
[Termination "Leonid_Starozhilov won by checkmate"]

1. e4 {[%clk 0:03:00.9]} 1... c5 {[%clk 0:02:59.7]} 2. Nf3 {[%clk 0:03:01.2]}
2... Nc6 {[%clk 0:02:58.4]} 3. Bb5 {[%clk 0:03:00.9]} 3... g6 {[%clk 0:02:56.6]}
4. O-O {[%clk 0:03:00.9]} 4... Bg7 {[%clk 0:02:56.1]} 5. Nc3 {[%clk 0:03:01.4]}
5... e6 {[%clk 0:02:47.6]} 6. Bxc6 {[%clk 0:02:56]} 6... bxc6 {[%clk 0:02:45.5]}
7. e5 {[%clk 0:02:52.4]} 7... Ne7 {[%clk 0:02:43.9]} 8. Ne4 {[%clk 0:02:51.7]}
8... Qc7 {[%clk 0:02:33.9]} 9. Nxc5 {[%clk 0:02:38.9]} 9... Bxe5 {[%clk
0:02:33.3]} 10. Nxe5 {[%clk 0:02:38.2]} 10... Qxe5 {[%clk 0:02:33]} 11. d4
{[%clk 0:02:38.8]} 11... Qg7 {[%clk 0:02:23.7]} 12. Bf4 {[%clk 0:02:32.4]} 12...
O-O {[%clk 0:02:14.1]} 13. Bd6 {[%clk 0:02:28.3]} 13... Re8 {[%clk 0:02:14.3]}
14. Ne4 {[%clk 0:02:23.7]} 14... f6 {[%clk 0:02:06.1]} 15. c4 {[%clk 0:01:43.7]}
15... Nf5 {[%clk 0:02:03.8]} 16. Re1 {[%clk 0:01:29.4]} 16... Ba6 {[%clk
0:01:44.7]} 17. b3 {[%clk 0:01:28.1]} 17... Nxd6 {[%clk 0:01:32.7]} 18. Nxd6
{[%clk 0:01:27.5]} 18... Re7 {[%clk 0:01:31.4]} 19. Qd2 {[%clk 0:01:24.3]} 19...
e5 {[%clk 0:01:30.7]} 20. Qa5 {[%clk 0:01:19.2]} 20... Bc8 {[%clk 0:01:30.2]}
21. Qc7 {[%clk 0:01:14.8]} 21... Qf8 {[%clk 0:01:27.6]} 22. h3 {[%clk
0:01:05.4]} 22... Re6 {[%clk 0:01:20.7]} 23. c5 {[%clk 0:00:53.9]} 23... Re7
{[%clk 0:01:06.2]} 24. dxe5 {[%clk 0:00:48.5]} 24... fxe5 {[%clk 0:01:06.1]} 25.
Re3 {[%clk 0:00:42.6]} 25... Ba6 {[%clk 0:01:04.8]} 26. Rae1 {[%clk 0:00:41.6]}
26... Qf4 {[%clk 0:00:49.4]} 27. Qa5 {[%clk 0:00:28.3]} 27... Bc8 {[%clk
0:00:44.5]} 28. Qc3 {[%clk 0:00:20.5]} 28... Ba6 {[%clk 0:00:36.2]} 29. Rf3
{[%clk 0:00:18.2]} 29... Qg5 {[%clk 0:00:31]} 30. Rg3 {[%clk 0:00:14.9]} 30...
Qf6 {[%clk 0:00:28.2]} 31. Ne4 {[%clk 0:00:13.6]} 31... Qg7 {[%clk 0:00:28.5]}
32. Qa5 {[%clk 0:00:12.1]} 32... Bb7 {[%clk 0:00:20.6]} 33. Qc7 {[%clk
0:00:08.5]} 33... Ba6 {[%clk 0:00:20.5]} 34. Qd6 {[%clk 0:00:08.2]} 34... Rae8
{[%clk 0:00:19.9]} 35. Nf6+ {[%clk 0:00:07.8]} 35... Kf8 {[%clk 0:00:20.3]} 36.
Nxe8 {[%clk 0:00:06.9]} 36... Kxe8 {[%clk 0:00:21.2]} 37. Rge3 {[%clk
0:00:07.1]} 37... Kd8 {[%clk 0:00:15.1]} 38. Rxe5 {[%clk 0:00:07.7]} 38... Rxe5
{[%clk 0:00:15]} 39. Qxe5 {[%clk 0:00:06.1]} 39... Qf7 {[%clk 0:00:13.3]} 40.
Qb8+ {[%clk 0:00:06]} 40... Bc8 {[%clk 0:00:13.7]} 41. Qe5 {[%clk 0:00:06.1]}
41... Ba6 {[%clk 0:00:12.5]} 42. h4 {[%clk 0:00:04.8]} 42... h5 {[%clk
0:00:12.1]} 43. Re3 {[%clk 0:00:04.1]} 43... Bb5 {[%clk 0:00:11]} 44. Rf3 {[%clk
0:00:04.4]} 44... Qe7 {[%clk 0:00:08.3]} 45. Qb8# {[%clk 0:00:04.1]} 1-0

[Event "*** Titled Tuesday Blitz"]
[Site "Chess.com"]
[Date "2020.10.27"]
[Round "1"]
[White "Shota_Azaladze"]
[Black "garfio2017"]
[Result "1-0"]
[WhiteElo "2633"]
[BlackElo "2290"]
[TimeControl "180+1"]
[EndTime "10:07:34 PDT"]
[Termination "Shota_Azaladze won on time"]

1. Nf3 {[%clk 0:03:00.9]} 1... d5 {[%clk 0:02:56.8]} 2. g3 {[%clk 0:03:01.8]}
2... c6 {[%clk 0:02:54.4]} 3. Bg2 {[%clk 0:03:01.5]} 3... Nf6 {[%clk 0:02:54.3]}
4. O-O {[%clk 0:03:01.9]} 4... Bf5 {[%clk 0:02:52.8]} 5. b3 {[%clk 0:03:00.1]}
5... e6 {[%clk 0:02:47.3]} 6. Bb2 {[%clk 0:03:00.6]} 6... Be7 {[%clk 0:02:47.7]}
7. d3 {[%clk 0:03:00.6]} 7... O-O {[%clk 0:02:47.3]} 8. Nbd2 {[%clk 0:02:59]}
8... a5 {[%clk 0:02:44.9]} 9. a3 {[%clk 0:02:58.4]} 9... Nbd7 {[%clk 0:02:43.4]}
10. Nh4 {[%clk 0:02:57.6]} 10... Bg6 {[%clk 0:02:42.7]} 11. Nxg6 {[%clk
0:02:56.7]} 11... hxg6 {[%clk 0:02:43.6]} 12. e4 {[%clk 0:02:56]} 12... e5
{[%clk 0:02:40.6]} 13. exd5 {[%clk 0:02:54.3]} 13... cxd5 {[%clk 0:02:39]} 14.
c4 {[%clk 0:02:53.5]} 14... Rc8 {[%clk 0:02:35.1]} 15. Re1 {[%clk 0:02:48.8]}
15... Nc5 {[%clk 0:02:31.7]} 16. Qc2 {[%clk 0:02:43.9]} 16... Bd6 {[%clk
0:02:22]} 17. Bc3 {[%clk 0:02:28.5]} 17... Re8 {[%clk 0:02:09.1]} 18. b4 {[%clk
0:02:19.5]} 18... Ne6 {[%clk 0:02:02.2]} 19. c5 {[%clk 0:02:17.6]} 19... Bc7
{[%clk 0:01:59.5]} 20. Qa4 {[%clk 0:02:05.7]} 20... e4 {[%clk 0:01:43.2]} 21.
dxe4 {[%clk 0:02:04.1]} 21... dxe4 {[%clk 0:01:40.2]} 22. Nxe4 {[%clk
0:02:03.3]} 22... Nxe4 {[%clk 0:01:40.3]} 23. Rxe4 {[%clk 0:02:03.5]} 23... Qd3
{[%clk 0:01:31.1]} 24. Re3 {[%clk 0:02:02]} 24... Qc4 {[%clk 0:01:23]} 25. Rae1
{[%clk 0:02:00.1]} 25... Red8 {[%clk 0:01:20]} 26. Qc2 {[%clk 0:01:32.8]} 26...
axb4 {[%clk 0:01:18.1]} 27. axb4 {[%clk 0:01:32.2]} 27... b6 {[%clk 0:01:15.6]}
28. c6 {[%clk 0:01:26.1]} 28... b5 {[%clk 0:01:14]} 29. Qb2 {[%clk 0:01:24.2]}
29... Rd3 {[%clk 0:01:08.9]} 30. Rxd3 {[%clk 0:01:19.9]} 30... Qxd3 {[%clk
0:01:08.4]} 31. Bf1 {[%clk 0:01:18.8]} 31... Qf5 {[%clk 0:01:06.3]} 32. Qb1
{[%clk 0:01:02.6]} 32... Qg4 {[%clk 0:00:59]} 33. Qe4 {[%clk 0:00:59]} 33... Qg5
{[%clk 0:00:52.5]} 34. h4 {[%clk 0:00:57.1]} 34... Qe7 {[%clk 0:00:49.2]} 35.
Bxb5 {[%clk 0:00:55.6]} 35... Qd6 {[%clk 0:00:43.4]} 36. Bc4 {[%clk 0:00:54.8]}
36... Re8 {[%clk 0:00:37.8]} 37. b5 {[%clk 0:00:53.6]} 37... Bb6 {[%clk
0:00:36.5]} 38. Kg2 {[%clk 0:00:53.7]} 38... g5 {[%clk 0:00:34.1]} 39. Qd5
{[%clk 0:00:52.9]} 39... Qa3 {[%clk 0:00:30.6]} 40. Qd7 {[%clk 0:00:44.6]} 40...
Rf8 {[%clk 0:00:28.1]} 41. Bxe6 {[%clk 0:00:40.5]} 41... fxe6 {[%clk 0:00:15.6]}
42. Bd4 {[%clk 0:00:35.4]} 42... Bxd4 {[%clk 0:00:10.8]} 43. Qxd4 {[%clk
0:00:36.3]} 43... Qa5 {[%clk 0:00:10.1]} 44. Qc4 {[%clk 0:00:34.7]} 44... Qxe1
{[%clk 0:00:08.3]} 45. Qc5 {[%clk 0:00:34.3]} 45... Qe4+ {[%clk 0:00:04.3]} 46.
Kf1 {[%clk 0:00:34.6]} 46... Qe2+ {[%clk 0:00:03.1]} 47. Kxe2 {[%clk 0:00:34.1]}
1-0

[Event "*** Titled Tuesday Blitz"]
[Site "Chess.com"]
[Date "2020.10.27"]
[Round "1"]
[White "Roza_Idrisova"]
[Black "Keithonsky"]
[Result "1-0"]
[WhiteElo "2218"]
[BlackElo "2551"]
[TimeControl "180+1"]
[EndTime "10:07:34 PDT"]
[Termination "Roza_Idrisova won by resignation"]

1. d4 {[%clk 0:02:56.2]} 1... Nf6 {[%clk 0:02:59.5]} 2. Nf3 {[%clk 0:02:55.7]}
2... d5 {[%clk 0:02:59.1]} 3. Bg5 {[%clk 0:02:54.2]} 3... e6 {[%clk 0:02:58]} 4.
Nbd2 {[%clk 0:02:53.4]} 4... Be7 {[%clk 0:02:58.4]} 5. e3 {[%clk 0:02:52.3]}
5... O-O {[%clk 0:02:57.8]} 6. Bd3 {[%clk 0:02:52.8]} 6... c5 {[%clk 0:02:58.1]}
7. c3 {[%clk 0:02:51.7]} 7... Nc6 {[%clk 0:02:58.6]} 8. O-O {[%clk 0:02:51.7]}
8... b6 {[%clk 0:02:58.2]} 9. a4 {[%clk 0:02:51.3]} 9... Bb7 {[%clk 0:02:57.7]}
10. h3 {[%clk 0:02:51.1]} 10... h6 {[%clk 0:02:57.3]} 11. Bh4 {[%clk 0:02:50]}
11... a5 {[%clk 0:02:57.6]} 12. Re1 {[%clk 0:02:48.3]} 12... Qc7 {[%clk
0:02:52.7]} 13. Rc1 {[%clk 0:02:39.8]} 13... Rad8 {[%clk 0:02:51.6]} 14. Bb1
{[%clk 0:02:38.4]} 14... Ne4 {[%clk 0:02:41.4]} 15. Bxe7 {[%clk 0:02:30.7]}
15... Nxe7 {[%clk 0:02:42.3]} 16. Ne5 {[%clk 0:02:23.7]} 16... f6 {[%clk
0:02:41.1]} 17. Nd3 {[%clk 0:02:14.1]} 17... Nxd2 {[%clk 0:02:35.8]} 18. Qxd2
{[%clk 0:02:13.9]} 18... c4 {[%clk 0:02:36.7]} 19. Nf4 {[%clk 0:02:13.4]} 19...
Qd7 {[%clk 0:02:37.3]} 20. e4 {[%clk 0:02:05.1]} 20... e5 {[%clk 0:02:26.4]} 21.
Nxd5 {[%clk 0:02:02.8]} 21... Nxd5 {[%clk 0:02:23.1]} 22. exd5 {[%clk
0:01:58.7]} 22... exd4 {[%clk 0:02:24]} 23. Qxd4 {[%clk 0:01:55.9]} 23... Qxd5
{[%clk 0:02:23.2]} 24. Qxd5+ {[%clk 0:01:54.1]} 24... Bxd5 {[%clk 0:02:24]} 25.
Rcd1 {[%clk 0:01:52.4]} 25... Bc6 {[%clk 0:02:22.1]} 26. Bg6 {[%clk 0:01:50.5]}
26... Bxa4 {[%clk 0:02:21.2]} 27. Rxd8 {[%clk 0:01:46.1]} 27... Rxd8 {[%clk
0:02:22.1]} 28. Re6 {[%clk 0:01:45.9]} 28... Rb8 {[%clk 0:02:20.8]} 29. Re7
{[%clk 0:01:44.7]} 29... Kf8 {[%clk 0:02:10.2]} 30. Rf7+ {[%clk 0:01:42.1]}
30... Kg8 {[%clk 0:02:10.6]} 31. Rc7 {[%clk 0:01:37.1]} 31... Bb3 {[%clk
0:02:10.4]} 32. f3 {[%clk 0:01:36]} 32... b5 {[%clk 0:02:09.5]} 33. Ra7 {[%clk
0:01:34.4]} 33... a4 {[%clk 0:02:07]} 34. Kf2 {[%clk 0:01:33.7]} 34... Rd8
{[%clk 0:02:00.7]} 35. Kg3 {[%clk 0:01:32.8]} 35... Rb8 {[%clk 0:01:53]} 36. h4
{[%clk 0:01:32.1]} 36... h5 {[%clk 0:01:52.7]} 37. Kf4 {[%clk 0:01:26.3]} 37...
Rd8 {[%clk 0:01:50]} 38. Rb7 {[%clk 0:01:23.4]} 38... Kf8 {[%clk 0:01:41.5]} 39.
Rxb5 {[%clk 0:01:20.8]} 39... Ke7 {[%clk 0:01:42]} 40. Rb7+ {[%clk 0:01:20.7]}
40... Rd7 {[%clk 0:01:42.6]} 41. Rxd7+ {[%clk 0:01:18.2]} 41... Kxd7 {[%clk
0:01:43.5]} 42. Bxh5 {[%clk 0:01:18.3]} 42... Ke6 {[%clk 0:01:40.7]} 43. Bg6
{[%clk 0:01:17.6]} 43... Kd5 {[%clk 0:01:38.5]} 44. Bf7+ {[%clk 0:01:11.5]}
44... Kd6 {[%clk 0:01:38.7]} 45. g4 {[%clk 0:01:10.6]} 45... Ke7 {[%clk
0:01:38.2]} 46. Bg8 {[%clk 0:01:07.5]} 46... Kf8 {[%clk 0:01:36.3]} 47. Bd5
{[%clk 0:01:06.9]} 47... Ke7 {[%clk 0:01:36.6]} 48. g5 {[%clk 0:01:06.9]} 48...
Kd6 {[%clk 0:01:34.2]} 49. gxf6 {[%clk 0:01:04.1]} 49... gxf6 {[%clk 0:01:35.1]}
50. Bg8 {[%clk 0:01:03.5]} 50... Ke7 {[%clk 0:01:35.5]} 51. h5 {[%clk
0:01:03.4]} 51... Kf8 {[%clk 0:01:35.9]} 52. Bd5 {[%clk 0:01:01.8]} 52... Kg7
{[%clk 0:01:36.8]} 53. Be6 {[%clk 0:00:54]} 53... Ba2 {[%clk 0:01:36.7]} 54. Bd7
{[%clk 0:00:51]} 54... Bb3 {[%clk 0:01:36.6]} 55. Be8 {[%clk 0:00:51]} 55... Bc2
{[%clk 0:01:34.9]} 56. Bb5 {[%clk 0:00:45.8]} 56... Bb3 {[%clk 0:01:33.5]} 57.
Bd7 {[%clk 0:00:43.8]} 57... Bc2 {[%clk 0:01:33.2]} 58. Bf5 {[%clk 0:00:42]}
58... Bd1 {[%clk 0:01:32.6]} 59. Bg6 {[%clk 0:00:39.5]} 59... Bb3 {[%clk
0:01:31.7]} 60. Ke3 {[%clk 0:00:38.4]} 60... Bd1 {[%clk 0:01:31.5]} 61. f4
{[%clk 0:00:37.9]} 61... Kh6 {[%clk 0:01:27.9]} 62. Kd4 {[%clk 0:00:36]} 62...
Bb3 {[%clk 0:01:27.3]} 63. Bf7 {[%clk 0:00:34.7]} 63... f5 {[%clk 0:01:23.3]}
64. Ke5 {[%clk 0:00:30.9]} 64... Bc2 {[%clk 0:01:23]} 65. Bxc4 {[%clk
0:00:30.1]} 65... Kxh5 {[%clk 0:01:23.9]} 66. Be6 {[%clk 0:00:28.9]} 66... Kg4
{[%clk 0:01:23.6]} 67. c4 {[%clk 0:00:28.7]} 67... Bb3 {[%clk 0:01:21.4]} 68. c5
{[%clk 0:00:28.9]} 68... Bxe6 {[%clk 0:01:20.9]} 69. Kxe6 {[%clk 0:00:28.7]}
69... Kxf4 {[%clk 0:01:21.8]} 70. c6 {[%clk 0:00:29.5]} 70... Kg3 {[%clk
0:01:22.7]} 71. c7 {[%clk 0:00:30]} 71... f4 {[%clk 0:01:23.6]} 72. c8=Q {[%clk
0:00:30]} 72... f3 {[%clk 0:01:24.5]} 73. Qc1 {[%clk 0:00:29.3]} 73... f2 {[%clk
0:01:25.4]} 74. Qf1 {[%clk 0:00:28.8]} 74... Kf3 {[%clk 0:01:26]} 75. Ke5 {[%clk
0:00:28.9]} 75... Ke3 {[%clk 0:01:26.9]} 76. Kf5 {[%clk 0:00:28.1]} 76... Kd2
{[%clk 0:01:27.8]} 77. Qxf2+ {[%clk 0:00:27]} 1-0

[Event "*** Titled Tuesday Blitz"]
[Site "Chess.com"]
[Date "2020.10.27"]
[Round "1"]
[White "LuisFSiles"]
[Black "FloMaster111"]
[Result "0-1"]
[WhiteElo "2292"]
[BlackElo "2640"]
[TimeControl "180+1"]
[EndTime "10:07:36 PDT"]
[Termination "FloMaster111 won by resignation"]

1. e4 {[%clk 0:02:57.5]} 1... e6 {[%clk 0:02:59.6]} 2. d4 {[%clk 0:02:56.6]}
2... d5 {[%clk 0:02:59.6]} 3. Nd2 {[%clk 0:02:51.3]} 3... Be7 {[%clk 0:02:57.8]}
4. Ngf3 {[%clk 0:02:49.7]} 4... Nf6 {[%clk 0:02:56.5]} 5. Bd3 {[%clk 0:02:44.8]}
5... c5 {[%clk 0:02:51.5]} 6. c3 {[%clk 0:02:43.6]} 6... Nc6 {[%clk 0:02:51.6]}
7. O-O {[%clk 0:02:34]} 7... dxe4 {[%clk 0:02:49.9]} 8. Nxe4 {[%clk 0:02:32.7]}
8... cxd4 {[%clk 0:02:50.3]} 9. cxd4 {[%clk 0:02:32]} 9... Bd7 {[%clk
0:02:24.9]} 10. Nc3 {[%clk 0:02:30.7]} 10... Nb4 {[%clk 0:02:23.3]} 11. Bc4
{[%clk 0:02:19.2]} 11... Bc6 {[%clk 0:02:22.8]} 12. Ne5 {[%clk 0:02:16.2]} 12...
Nbd5 {[%clk 0:02:02.4]} 13. Qe2 {[%clk 0:01:49.3]} 13... O-O {[%clk 0:02:01.2]}
14. Rd1 {[%clk 0:01:46.2]} 14... Nxc3 {[%clk 0:01:55.2]} 15. bxc3 {[%clk
0:01:45.4]} 15... Bd5 {[%clk 0:01:55.1]} 16. Bd3 {[%clk 0:01:43.8]} 16... b6
{[%clk 0:01:53.4]} 17. c4 {[%clk 0:01:34]} 17... Bb7 {[%clk 0:01:53.3]} 18. Bb2
{[%clk 0:01:30.8]} 18... Rc8 {[%clk 0:01:52.5]} 19. Qe3 {[%clk 0:01:25.8]} 19...
Qd6 {[%clk 0:01:36]} 20. Qh3 {[%clk 0:01:15.1]} 20... Be4 {[%clk 0:01:30.8]} 21.
Bxe4 {[%clk 0:00:57.7]} 21... Nxe4 {[%clk 0:01:31.7]} 22. d5 {[%clk 0:00:50.1]}
22... Qb4 {[%clk 0:01:14.2]} 23. Rab1 {[%clk 0:00:37.7]} 23... exd5 {[%clk
0:00:44.5]} 24. Nd7 {[%clk 0:00:29.8]} 24... Bc5 {[%clk 0:00:33.5]} 25. Nxf8
{[%clk 0:00:20.4]} 25... Rxf8 {[%clk 0:00:30.1]} 26. Bd4 {[%clk 0:00:14.1]}
26... Qxc4 {[%clk 0:00:26.1]} 27. Bxc5 {[%clk 0:00:11]} 27... Qxc5 {[%clk
0:00:27]} 28. Qe3 {[%clk 0:00:11.1]} 28... Qxe3 {[%clk 0:00:26.3]} 29. fxe3
{[%clk 0:00:12]} 29... Nc3 {[%clk 0:00:27.2]} 30. Rbc1 {[%clk 0:00:08.8]} 30...
Ne2+ {[%clk 0:00:27.5]} 31. Kf2 {[%clk 0:00:07.5]} 31... Nxc1 {[%clk 0:00:28.4]}
32. Rxc1 {[%clk 0:00:08.1]} 32... Ra8 {[%clk 0:00:23]} 33. Rc7 {[%clk
0:00:08.5]} 33... Kf8 {[%clk 0:00:23.5]} 34. Rd7 {[%clk 0:00:08.8]} 34... Ke8
{[%clk 0:00:24.1]} 35. Rxd5 {[%clk 0:00:09.2]} 35... Ke7 {[%clk 0:00:24.8]} 36.
Re5+ {[%clk 0:00:10.1]} 36... Kd6 {[%clk 0:00:25.1]} 37. Rh5 {[%clk 0:00:10.9]}
37... h6 {[%clk 0:00:25]} 38. Rf5 {[%clk 0:00:11.8]} 38... f6 {[%clk 0:00:25.3]}
39. Rf4 {[%clk 0:00:12.7]} 39... Rc8 {[%clk 0:00:25.8]} 40. Rg4 {[%clk
0:00:13.2]} 40... g5 {[%clk 0:00:25.7]} 41. Kf3 {[%clk 0:00:14]} 41... Rc2
{[%clk 0:00:25.8]} 42. Rd4+ {[%clk 0:00:14.7]} 42... Ke5 {[%clk 0:00:26]} 43.
Ra4 {[%clk 0:00:15]} 43... a5 {[%clk 0:00:26.1]} 44. Ra3 {[%clk 0:00:14.5]}
44... f5 {[%clk 0:00:24.8]} 45. g3 {[%clk 0:00:14.5]} 45... h5 {[%clk
0:00:24.9]} 46. g4 {[%clk 0:00:09.9]} 46... hxg4+ {[%clk 0:00:20.9]} 47. Kg3
{[%clk 0:00:10.8]} 47... Ke4 {[%clk 0:00:21]} 48. Rxa5 {[%clk 0:00:10.3]} 48...
bxa5 {[%clk 0:00:20.8]} 0-1